fUSD/lending_fUSD_20250423
["ID","MTS","AMOUNT","RATE_DAILY","PERIOD"]
[358763361,1745416257590,-214.900722,0.00046585,14]
[358763363,1745416257600,-214.900722,0.00046585,14]
[358763365,1745416257610,-214.900722,0.00046585,14]
[358763367,1745416257621,-214.900722,0.00046585,14]
[358763369,1745416257632,-214.900722,0.00046585,14]
[358763371,1745416257642,-214.900722,0.00046585,14]
[358763373,1745416257652,-214.900722,0.00046585,14]
[358763375,1745416257662,-214.900722,0.00046585,14]
[358763377,1745416257671,-214.900722,0.00046585,14]
[358763379,1745416257681,-214.900722,0.00046585,14]
[358763381,1745416257691,-214.900722,0.00046585,14]
[358763383,1745416257701,-214.900722,0.00046585,14]
[358763385,1745416257711,-214.900722,0.00046585,14]
[358763387,1745416257721,-214.900722,0.00046585,14]
[358763389,1745416257731,-214.900722,0.00046585,14]
[358763391,1745416257741,-214.900722,0.00046585,14]
[358763393,1745416257751,-214.900722,0.00046585,14]
[358763395,1745416257761,-214.900714,0.00046585,14]
[358763397,1745416257770,-535.316781,0.00046585,14]
[358763399,1745416257780,-535.316781,0.00046585,14]
[358763401,1745416257791,-535.316781,0.00046585,14]
[358763403,1745416257801,-535.316781,0.00046585,14]
[358763405,1745416257811,-535.316781,0.00046585,14]
[358763407,1745416257820,-535.316781,0.00046585,14]
[358763409,1745416257834,-535.316781,0.00046585,14]
[358763411,1745416257844,-535.316781,0.00046585,14]
[358763413,1745416257854,-535.316781,0.00046585,14]
[358763415,1745416257864,-535.316781,0.00046585,14]
[358763417,1745416257874,-535.316781,0.00046585,14]
[358763419,1745416257884,-535.316781,0.00046585,14]
[358763421,1745416257893,-535.316781,0.00046585,14]
[358763423,1745416257903,-535.316781,0.00046585,14]
[358763425,1745416257914,-535.316781,0.00046585,14]
[358763427,1745416257924,-535.316781,0.00046585,14]
[358763429,1745416257934,-535.316781,0.00046585,14]
[358763431,1745416257944,-535.316781,0.00046585,14]
[358763433,1745416257954,-535.316781,0.00046585,14]
[358763435,1745416257963,-535.316779,0.00046585,14]
[358763437,1745416257973,-151.0,0.00046585,14]
[358763439,1745416257983,-258.363531,0.00046585,14]
[358763441,1745416257993,-258.363531,0.00046585,14]
[358763444,1745416258004,-151.0,0.00046585,14]
[358763445,1745416258018,-151.0,0.00046585,14]
[358763446,1745416258027,-7097.485015,0.00046585,14]
[358763447,1745416258038,-7097.485015,0.00046585,14]
[358763448,1745416258047,-575.613238,0.00046585,14]
[358763449,1745416258057,-575.613238,0.00046585,14]
[358763450,1745416258067,-151.0,0.00046585,14]
[358763451,1745416258079,-151.0,0.00046585,14]
[358763452,1745416258089,-151.0,0.00046585,14]
[358763453,1745416258099,-151.610495,0.00046585,14]
[358763454,1745416258108,-151.0,0.00046585,14]
[358763455,1745416258117,-700.0,0.00046585,17]
[358763456,1745416258127,-700.0,0.00046585,17]
[358763457,1745416258137,-700.0,0.00046585,17]
[358763458,1745416258146,-700.0,0.00046585,17]
[358763459,1745416258156,-700.0,0.00046585,17]
[358763461,1745416258166,-160.254056,0.00046585,14]
[358763463,1745416258176,-160.254056,0.00046585,14]
[358763465,1745416258187,-50724.26317404,0.00046585,30]
[358763467,1745416258196,-50724.26317404,0.00046585,30]
[358763469,1745416258206,-50724.26317404,0.00046585,30]
[358763471,1745416258216,-50724.26317404,0.00046585,30]
[358763473,1745416258225,-700.0,0.0004659,17]
[358763475,1745416258235,-700.0,0.0004659,17]
[358763478,1745416258245,-700.0,0.0004659,17]
[358763480,1745416258255,-494.2549027,0.0004659,17]
[358763537,1745416258820,-205.7450973,0.0004659,17]
[358763538,1745416258832,-700.0,0.0004659,17]
[358763540,1745416258843,-513.1857707,0.000466,2]
[358763543,1745416258860,-3007.47116948,0.000466,2]
[358763545,1745416258873,-355.02000002,0.000466,2]
[358763547,1745416258885,-1734.44,0.000466,2]
[358763549,1745416258896,-1870.16,0.000466,2]
[358763551,1745416258908,-1407.885,0.000466,2]
[358763554,1745416258920,-967.28418073,0.000466,2]
[358763556,1745416258931,-510.63624484,0.000466,2]
[358763560,1745416258967,-17633.19758475,0.000466,2]
[358763562,1745416258976,-2514.16295005,0.000466,10]
[358763564,1745416258986,-200.0,0.000466,67]
[358763566,1745416258997,-150.0,0.000466,103]
[358763568,1745416259007,-1459.93,0.000466,2]
[358763570,1745416259017,-30133.51006643,0.00046603,120]
[358763688,1745416267762,150.0,0.00034307,30]
[358763689,1745416275046,522.32353557,0.00046683,120]
[358763690,1745416278370,489.34213067,0.00034307,30]
[358763691,1745416278833,500.0,0.00041096,30]
[358763692,1745416279099,265.0,0.00041096,30]
[358763693,1745416296553,500.0,0.00043835,30]
[358763694,1745416296809,619.38671729,0.00043835,30]
[358763695,1745416317614,500.0,0.00043835,30]
[358763696,1745416317873,500.0,0.00043835,30]
[358763697,1745416318123,500.0,0.00043835,30]
[358763698,1745416318385,500.0,0.00043835,30]
[358763699,1745416318647,500.0,0.00043835,30]
[358763700,1745416318883,500.0,0.00043835,30]
[358763701,1745416319130,207.98,0.00043835,30]
[358763702,1745416322156,150.0,0.00021999,117]
[358763703,1745416322228,150.0,0.00022436,117]
[358763704,1745416322314,150.0,0.00033917,117]
[358763705,1745416325281,224.92022241,0.00046683,120]
[358763706,1745416334543,500.0,0.00042913,60]
[358763707,1745416342409,500.0,0.00043835,30]
[358763708,1745416342663,500.0,0.00043835,30]
[358763709,1745416430654,545.53359712,0.00043835,30]
[358763710,1745416436974,50000.0,0.00043,30]
[358763711,1745416451925,50000.0,0.00046683,40]
[358763712,1745416463683,50000.0,0.00046683,41]
[358763713,1745416470453,500.0,0.00046683,120]
[358763714,1745416510352,2000.0,0.00046683,60]
[358763715,1745416524533,500.0,0.00046683,120]
[358763716,1745416524759,500.0,0.00046683,120]
[358763717,1745416525030,500.0,0.00046683,120]
[358763718,1745416525295,500.0,0.00046683,120]
[358763719,1745416525548,500.0,0.00046683,120]
[358763720,1745416537724,1500.0,0.0003919,120]
[358763721,1745416547516,2000.0,0.00046683,60]
[358763722,1745416558806,2000.0,0.00046683,60]
[358763724,1745416571294,500.0,0.00043835,30]
[358763725,1745416582451,500.0,0.00043835,30]
[358763726,1745416583076,500.0,0.00043835,30]
[358763727,1745416583995,456.69,0.00046683,40]
[358763728,1745416596393,500.0,0.00043835,30]
[358763729,1745416668928,500.0,0.00043,120]
[358763730,1745416678255,500.0,0.00043,120]
[358763731,1745416694327,500.0,0.00043,120]
[358763732,1745416709586,1160.976,0.00038223,51]
[358763733,1745416709790,163.74404194,0.00038223,51]
[358763734,1745416715310,562.1537278,0.00043,120]
[358763735,1745416720549,500.0,0.00043835,30]
[358763736,1745416720825,198.53,0.00043835,30]
[358763737,1745416739978,500.0,0.00043835,30]
[358763738,1745416740075,500.0,0.00043835,30]
[358763739,1745416759553,150.0,0.00041095,120]
[358763740,1745416759783,150.0,0.00042465,120]
[358763741,1745416765963,451.68,0.00037762,120]
[358763742,1745416766385,451.68,0.00042482,120]
[358763743,1745416797265,-361.91999998,0.0001989,2]
[358763744,1745416797791,-250.0,0.00019895,2]
[358763745,1745416797822,-150.0,0.00019895,2]
[358763746,1745416797850,-1099.1283,0.000199,2]
[358763747,1745416797877,-713.95170002,0.000199,2]
[358763748,1745416813921,500.0,0.00046613,120]
[358763749,1745416819990,-1468.43069998,0.000199,2]
[358763750,1745416880312,500.0,0.00046613,40]
[358763751,1745416905881,500.0,0.00046613,40]
[358763753,1745416923678,500.0,0.00042913,60]
[358763754,1745417026093,500.0,0.00042913,60]
[358763755,1745417026369,500.0,0.00043835,30]
[358763756,1745417027681,500.0,0.00043461,60]
[358763758,1745417052267,300.0,0.00046613,40]
[358763759,1745417073386,500.0,0.00043835,31]
[358763760,1745417073448,500.0,0.00043835,31]
[358763761,1745417073526,428.7383726,0.00043835,31]
[358763762,1745417073618,500.0,0.00043835,31]
[358763763,1745417073695,500.0,0.00043835,31]
[358763764,1745417073770,500.0,0.00043835,31]
[358763765,1745417073836,500.0,0.00043835,31]
[358763766,1745417073917,500.0,0.00043835,31]
[358763767,1745417074069,500.0,0.00043835,31]
[358763768,1745417074170,500.0,0.00043835,31]
[358763769,1745417074241,500.0,0.00043835,31]
[358763770,1745417074312,500.0,0.00043835,31]
[358763771,1745417074388,500.0,0.00043835,31]
[358763772,1745417074458,500.0,0.00043835,31]
[358763773,1745417074555,500.0,0.00043835,31]
[358763774,1745417074620,500.0,0.00043835,31]
[358763775,1745417074682,500.0,0.00043835,31]
[358763776,1745417089101,924.92077754,0.00043835,31]
[358763777,1745417089188,924.92077754,0.00043835,31]
[358763778,1745417089256,924.92077754,0.00043835,31]
[358763779,1745417089337,924.92077754,0.00043835,31]
[358763780,1745417089402,924.92077754,0.00043835,31]
[358763781,1745417089484,924.92077754,0.00043835,31]
[358763782,1745417089550,924.92077754,0.00043835,31]
[358763783,1745417089614,924.92077754,0.00043835,31]
[358763784,1745417089701,924.92077754,0.00043835,31]
[358763785,1745417089770,924.92077754,0.00043835,31]
[358763786,1745417089841,924.92077754,0.00043835,31]
[358763787,1745417089935,924.92077754,0.00043835,31]
[358763788,1745417090000,924.92077754,0.00043835,31]
[358763789,1745417090084,924.92077754,0.00043835,31]
[358763790,1745417090172,924.92077754,0.00043835,31]
[358763791,1745417090545,924.92077754,0.00043835,31]
[358763792,1745417090642,924.92077754,0.00043835,31]
[358763793,1745417090706,924.92077754,0.00043835,31]
[358763794,1745417090791,924.92077754,0.00043835,31]
[358763795,1745417090853,924.92077754,0.00043835,31]
[358763796,1745417090918,924.92077754,0.00043835,31]
[358763797,1745417090982,924.92077754,0.00043835,31]
[358763798,1745417091045,924.92077754,0.00043835,31]
[358763799,1745417091162,924.92077754,0.00043835,31]
[358763800,1745417091225,924.92077754,0.00043835,31]
[358763801,1745417091296,924.92077754,0.00043835,31]
[358763802,1745417091359,924.92077754,0.00043835,31]
[358763803,1745417091424,924.92077754,0.00043835,31]
[358763804,1745417091507,924.92077754,0.00043835,31]
[358763805,1745417091593,924.92077754,0.00043835,31]
[358763806,1745417091720,924.92077754,0.00043835,31]
[358763807,1745417091806,924.92077754,0.00043835,31]
[358763808,1745417091867,924.92077754,0.00043835,31]
[358763809,1745417091948,924.92077754,0.00043835,31]
[358763810,1745417092011,924.92077754,0.00043835,31]
[358763811,1745417092077,924.92077754,0.00043835,31]
[358763812,1745417092161,924.92077754,0.00043835,31]
[358763813,1745417092249,924.92077754,0.00043835,31]
[358763814,1745417092308,924.92077754,0.00043835,31]
[358763815,1745417092376,924.92077754,0.00043835,31]
[358763816,1745417092433,924.92077754,0.00043835,31]
[358763817,1745417092575,924.92077754,0.00043835,31]
[358763818,1745417092633,924.92077754,0.00043835,31]
[358763819,1745417092691,924.92077754,0.00043835,31]
[358763820,1745417107492,500.0,0.00043835,31]
[358763821,1745417107557,500.0,0.00043835,31]
[358763822,1745417107630,500.0,0.00043835,31]
[358763823,1745417107697,500.0,0.00043835,31]
[358763824,1745417107767,500.0,0.00043835,31]
[358763825,1745417107845,500.0,0.00043835,31]
[358763826,1745417107908,500.0,0.00043835,31]
[358763827,1745417107983,500.0,0.00043835,31]
[358763828,1745417108053,500.0,0.00043835,31]
[358763829,1745417108118,500.0,0.00043835,31]
[358763830,1745417108187,500.0,0.00043835,31]
[358763831,1745417108288,500.0,0.00043835,31]
[358763832,1745417108357,500.0,0.00043835,31]
[358763833,1745417108448,288.57925033,0.00043835,31]
[358763834,1745417108515,500.0,0.00043835,31]
[358763835,1745417108583,500.0,0.00043835,31]
[358763836,1745417108650,500.0,0.00043835,31]
[358763837,1745417108762,500.0,0.00043835,31]
[358763838,1745417109131,500.0,0.00043835,31]
[358763839,1745417109212,500.0,0.00043835,31]
[358763840,1745417109280,500.0,0.00043835,31]
[358763841,1745417109354,500.0,0.00043835,31]
[358763842,1745417109433,500.0,0.00043835,31]
[358763843,1745417109588,500.0,0.00043835,31]
[358763844,1745417109679,500.0,0.00043835,31]
[358763845,1745417109742,500.0,0.00043835,31]
[358763846,1745417109819,500.0,0.00043835,31]
[358763847,1745417109886,500.0,0.00043835,31]
[358763848,1745417109950,500.0,0.00043835,31]
[358763849,1745417110013,500.0,0.00043835,31]
[358763850,1745417110077,500.0,0.00043835,31]
[358763851,1745417110145,500.0,0.00043835,31]
[358763852,1745417110206,500.0,0.00043835,31]
[358763853,1745417110267,500.0,0.00043835,31]
[358763854,1745417110326,500.0,0.00043835,31]
[358763855,1745417110391,500.0,0.00043835,31]
[358763856,1745417110453,500.0,0.00043835,31]
[358763857,1745417110536,500.0,0.00043835,31]
[358763858,1745417110598,500.0,0.00043835,31]
[358763859,1745417110657,500.0,0.00043835,31]
[358763860,1745417110717,500.0,0.00043835,31]
[358763861,1745417110806,500.0,0.00043835,31]
[358763862,1745417110867,500.0,0.00043835,31]
[358763863,1745417110931,500.0,0.00043835,31]
[358763864,1745417111019,500.0,0.00043835,31]
[358763865,1745417111330,500.0,0.00043835,31]
[358763866,1745417115654,300.0,0.00046615,40]
[358763867,1745417120988,500.0,0.00043835,30]
[358763868,1745417130539,500.0,0.00043835,31]
[358763869,1745417130605,500.0,0.00043835,31]
[358763870,1745417130672,500.0,0.00043835,31]
[358763871,1745417130737,500.0,0.00043835,31]
[358763872,1745417130800,500.0,0.00043835,31]
[358763873,1745417130883,500.0,0.00043835,31]
[358763874,1745417130947,500.0,0.00043835,31]
[358763875,1745417131121,500.0,0.00043835,31]
[358763876,1745417131183,500.0,0.00043835,31]
[358763877,1745417131244,500.0,0.00043835,31]
[358763878,1745417131332,500.0,0.00043835,31]
[358763879,1745417131706,500.0,0.00043835,31]
[358763880,1745417131792,500.0,0.00043835,31]
[358763881,1745417131856,500.0,0.00043835,31]
[358763882,1745417131917,500.0,0.00043835,31]
[358763883,1745417131999,500.0,0.00043835,31]
[358763884,1745417132061,500.0,0.00043835,31]
[358763885,1745417132121,500.0,0.00043835,31]
[358763886,1745417132186,500.0,0.00043835,31]
[358763887,1745417132253,500.0,0.00043835,31]
[358763888,1745417132317,500.0,0.00043835,31]
[358763889,1745417132406,500.0,0.00043835,31]
[358763890,1745417132473,500.0,0.00043835,31]
[358763891,1745417148388,500.0,0.00043835,31]
[358763892,1745417148455,500.0,0.00043835,31]
[358763893,1745417148544,500.0,0.00043835,31]
[358763894,1745417148614,500.0,0.00043835,31]
[358763895,1745417148687,285.97213253,0.00043835,31]
[358763896,1745417148766,500.0,0.00043835,31]
[358763897,1745417148869,500.0,0.00043835,31]
[358763898,1745417148943,500.0,0.00043835,31]
[358763899,1745417149022,500.0,0.00043835,31]
[358763900,1745417149092,500.0,0.00043835,31]
[358763901,1745417149183,500.0,0.00043835,31]
[358763902,1745417149272,500.0,0.00043835,31]
[358763903,1745417155264,1996.32,0.00046615,120]
[358763904,1745417156203,75449.79367826,0.000438,31]
[358763905,1745417166598,245.36806257,0.00046615,120]
[358763906,1745417194125,500.0,0.00043699,31]
[358763907,1745417194204,500.0,0.00043699,31]
[358763908,1745417194285,466.8640031,0.00043699,31]
[358763909,1745417194362,500.0,0.00043699,31]
[358763910,1745417194506,500.0,0.00043699,31]
[358763911,1745417194587,500.0,0.00043699,31]
[358763912,1745417194670,500.0,0.00043699,31]
[358763913,1745417194772,500.0,0.00043699,31]
[358763914,1745417194873,500.0,0.00043699,31]
[358763915,1745417194941,500.0,0.00043699,31]
[358763916,1745417195037,500.0,0.00043699,31]
[358763917,1745417195174,500.0,0.00043699,31]
[358763918,1745417195265,500.0,0.00043699,31]
[358763919,1745417195341,500.0,0.00043699,31]
[358763920,1745417195453,500.0,0.00043699,31]
[358763921,1745417195527,500.0,0.00043699,31]
[358763922,1745417195600,500.0,0.00043699,31]
[358763923,1745417210076,500.0,0.00043699,31]
[358763924,1745417210142,300.0,0.00043699,31]
[358763925,1745417210344,500.0,0.00043699,31]
[358763926,1745417210410,500.0,0.00043699,31]
[358763927,1745417226689,50000.0,0.00043,30]
[358763929,1745417267896,1831.48,0.00043836,30]
[358763930,1745417276295,1000.0,0.00046615,120]
[358763931,1745417278516,50000.0,0.00043,31]
[358763932,1745417279361,1000.0,0.00046615,120]
[358763933,1745417281928,1000.0,0.00046615,120]
[358763934,1745417283025,500.0,0.00043,30]
[358763935,1745417283442,1000.0,0.00046615,120]
[358763936,1745417285613,50000.0,0.00043,32]
[358763937,1745417291901,9656.03498155,0.00043,33]
[358763938,1745417292833,1186.0,0.00046615,120]
[358763943,1745417345381,1214.9958948,0.00046615,40]
[358763944,1745417349206,394.0,0.00046615,40]
[358763945,1745417373417,2466.58,0.00036426,120]
[358763957,1745417432019,-357.75999997,0.00021199,2]
[358763958,1745417432053,-271.9201511,0.00021199,2]
[358763959,1745417432086,-178.80778469,0.00021199,2]
[358763960,1745417432096,-247.424968,0.00022244,2]
[358763961,1745417432106,-166.64307559,0.00022469,2]
[358763962,1745417432116,-340.05617172,0.00022469,2]
[358763963,1745417432295,-488.03111794,0.00022469,2]
[358763964,1745417432305,-900.0,0.00022569,2]
[358763965,1745417432314,-300.0,0.00022569,2]
[358763966,1745417432324,-166.66,0.0002257,2]
[358763967,1745417432335,-9999.99,0.0002257,2]
[358763968,1745417432345,-250.0,0.00023,2]
[358763969,1745417432354,-150.0,0.00023319,2]
[358763970,1745417432364,-150.0,0.00023319,2]
[358763971,1745417432374,-250.0,0.00023319,2]
[358763972,1745417432384,-150.0,0.00023319,2]
[358763973,1745417432394,-250.0,0.00023319,2]
[358763974,1745417432403,-578.73,0.00023368,2]
[358763975,1745417432414,-999.99,0.00023368,2]
[358763977,1745417432425,-150.99,0.00023368,2]
[358763979,1745417432437,-296.28,0.00023368,2]
[358763981,1745417432447,-2893.64,0.00023368,2]
[358763983,1745417432457,-299.99,0.00023368,7]
[358763985,1745417432468,-388.19,0.00023368,2]
[358763987,1745417432479,-760.38,0.00023368,2]
[358763989,1745417432489,-452.21,0.00023368,2]
[358763991,1745417432500,-2966.55642876,0.000239,5]
[358763993,1745417432510,-234.67,0.000239,2]
[358763995,1745417432520,-692.47,0.000239,2]
[358763997,1745417432530,-3897.32,0.00024174,2]
[358763999,1745417432540,-166.66,0.00024432,2]
[358764001,1745417432550,-420.0,0.0002451,2]
[358764002,1745417432560,-1260.0,0.00024624,2]
[358764004,1745417432570,-300.0,0.00025,2]
[358764006,1745417432581,-2966.5564286,0.00025141,5]
[358764008,1745417432593,-166.66,0.00026295,2]
[358764010,1745417432603,-2966.5564286,0.00026383,6]
[358764012,1745417432613,-587.0,0.00026619,2]
[358764014,1745417432623,-1763.0,0.00026868,2]
[358764016,1745417432633,-350.0,0.00027,2]
[358764018,1745417432643,-2966.5564286,0.00027624,7]
[358764020,1745417432653,-250.62962809,0.00028336,2]
[358764022,1745417432662,-2966.5564286,0.00028866,8]
[358764024,1745417432672,-400.0,0.00029,2]
[358764059,1745417433019,-2469.0,0.00029315,2]
[358764061,1745417433030,-2966.5564286,0.00030107,9]
[358764063,1745417433040,-450.0,0.00031,2]
[358764065,1745417433050,-2966.5564286,0.00031348,9]
[358764067,1745417433060,-166.64307559,0.00031886,2]
[358764069,1745417433070,-3457.0,0.00031986,3]
[358764071,1745417433080,-2966.5564286,0.0003259,10]
[358764073,1745417433090,-500.0,0.00033,2]
[358764075,1745417433100,-2966.5564286,0.00033831,11]
[358764077,1745417433110,-181.0,0.00034899,3]
[358764079,1745417433121,-550.0,0.00035,2]
[358764081,1745417433131,-2966.5564286,0.00035072,12]
[358764083,1745417433141,-150.0,0.0003536,2]
[358764085,1745417433154,-1000.0,0.0003537,2]
[358764087,1745417433163,-200.0,0.0003559,2]
[358764089,1745417433173,-173.46,0.00035615,2]
[358764090,1745417433184,-3091.64,0.0003577,2]
[358764092,1745417433194,-500.0,0.00035902,2]
[358764094,1745417433203,-176.94,0.00035914,2]
[358764096,1745417433213,-250.0,0.00035945,2]
[358764098,1745417433223,-518.61,0.00035973,2]
[358764100,1745417433233,-500.0,0.00036,5]
[358764102,1745417433243,-160.47,0.00036027,2]
[358764104,1745417433253,-500.0,0.00036217,7]
[358764106,1745417433263,-6955.94,0.00036237,2]
[358764108,1745417433273,-250.05,0.00036288,2]
[358764110,1745417433284,-2966.5564286,0.00036314,13]
[358764112,1745417433293,-1390.53,0.00036758,2]
[358764114,1745417433303,-202.06,0.00036821,2]
[358764116,1745417433313,-600.0,0.00037,2]
[358764118,1745417433323,-1133.24,0.00037062,2]
[358764120,1745417433333,-2966.5564286,0.00037555,14]
[358764122,1745417433343,-1029.26,0.00037654,2]
[358764124,1745417433352,-160.47,0.00038059,2]
[358764126,1745417433362,-611.37,0.00038179,2]
[358764128,1745417433372,-2966.5564286,0.00038797,14]
[358764130,1745417433381,-650.0,0.00039,2]
[358764132,1745417433392,-353.43,0.0003919,2]
[358764134,1745417433402,-1133.24,0.00039326,2]
[358764136,1745417433412,-4846.35,0.00039396,2]
[358764138,1745417433422,-500.0,0.00039753,2]
[358764139,1745417433434,-1000.0,0.00039791,2]
[358764142,1745417433444,-2966.5564286,0.00040038,15]
[358764143,1745417433454,-160.47,0.0004009,2]
[358764145,1745417433464,-193.67,0.00040171,2]
[358764147,1745417433474,-1334.0,0.00040658,2]
[358764148,1745417433483,-796.0,0.00040658,2]
[358764149,1745417433493,-3984.0,0.00040658,2]
[358764150,1745417433503,-876.0,0.00040658,2]
[358764151,1745417433513,-152.0,0.00040658,2]
[358764152,1745417433523,-156.393,0.00040888,7]
[358764153,1745417433533,-700.0,0.00041,2]
[358764154,1745417433544,-2966.5564286,0.00041279,16]
[358764155,1745417433554,-152.0,0.0004145,3]
[358764156,1745417433564,-1803.0,0.000415,2]
[358764157,1745417433575,-1133.24,0.0004159,2]
[358764158,1745417433585,-500.0,0.00041817,60]
[358764159,1745417433595,-11081.3411138,0.00041963,2]
[358764160,1745417433604,-2000.0,0.00042,2]
[358764161,1745417433614,-5565.0,0.000421,3]
[358764162,1745417433624,-160.47,0.00042122,2]
[358764163,1745417433634,-2966.5564286,0.00042521,17]
[358764164,1745417433644,-373.0,0.000427,2]
[358764166,1745417433654,-5565.0,0.000427,5]
[358764168,1745417433665,-4555.2888,0.000429,2]
[358764170,1745417433675,-500.0,0.00042913,60]
[358764172,1745417433686,-750.0,0.00043,2]
[358764174,1745417433696,-1094.0,0.00043,7]
[358764176,1745417433706,-163.366,0.00043322,2]
[358764178,1745417433716,-2581.16780124,0.00043558,15]
[358764180,1745417433726,-942.583,0.00043658,2]
[358764181,1745417433735,-796.0,0.00043658,2]
[358764184,1745417433746,-3984.0,0.00043658,2]
[358764185,1745417433756,-876.0,0.00043658,2]
[358764187,1745417433766,-6000.0,0.000437,3]
[358764189,1745417433776,-782.1958624,0.00043762,18]
[358764300,1745417438160,-548.21,0.00035501,2]
[358764301,1745417438171,-1132.0,0.00040658,2]
[358764302,1745417438181,-2060.75,0.00042989,2]
[358764303,1745417438194,-70.64,0.00042989,2]
[358764304,1745417438204,-500.0,0.00043557,31]
[358764305,1745417438214,-500.0,0.00043557,31]
[358764306,1745417438223,-362.98488923,0.00043557,31]
[358764307,1745417438232,-2184.3605662,0.00043762,18]
[358764308,1745417438242,-1000.0,0.00043835,5]
[358764309,1745417438251,-223.15332912,0.00043836,2]
[358764310,1745417438260,-10000.0,0.00043836,30]
[358764311,1745417438270,-3878.18616828,0.00043836,14]
[358764312,1745417438300,-1831.81383172,0.00043836,14]
[358764313,1745417438309,-500.0,0.00043836,120]
[358764314,1745417438318,-500.0,0.00043836,120]
[358764315,1745417438328,-324.66950082,0.00043836,120]
[358764316,1745417438343,-175.33049918,0.00043836,120]
[358764317,1745417438352,-500.0,0.00043836,120]
[358764318,1745417438361,-220.57082397,0.00043836,120]
[358764319,1745417438372,-279.42917603,0.00043836,120]
[358764320,1745417438382,-607.52758236,0.00043836,120]
[358764321,1745417438391,-1050.8724126,0.00043854,2]
[358764322,1745417438403,-82.3675874,0.00043854,2]
[358764323,1745417438414,-234.16,0.00043877,2]
[358764324,1745417438423,-925.73754258,0.00043887,15]
[358764325,1745417438434,-331.78044615,0.00043887,15]
[358764326,1745417438446,-281.36142601,0.00043887,15]
[358764521,1745417440535,-274.48407237,0.00043658,2]
[358764523,1745417440547,-857.51592763,0.00043658,2]
[358764525,1745417440557,-1042.28838644,0.00043887,15]
[358764527,1745417440568,-1407.537,0.00043888,30]
[358764530,1745417440578,-5000.0,0.00044,5]
[358764532,1745417440588,-1076.7,0.00044,2]
[358764534,1745417440598,-500.0,0.00044009,120]
[358764535,1745417440607,-500.0,0.00044009,120]
[358764537,1745417440617,-160.47,0.00044154,2]
[358764540,1745417440627,-1000.0,0.00044213,2]
[358764542,1745417440637,-2581.16780118,0.00044215,15]
[358764544,1745417440646,-1200.4660533,0.00044288,4]
[358764546,1745417440655,-174.95734152,0.00044384,30]
[358764547,1745417440665,-157.46160736,0.00044384,30]
[358764549,1745417440674,-174.95734152,0.00044384,30]
[358764552,1745417440686,-157.46160737,0.00044384,30]
[358764553,1745417440695,-301.41,0.000444,2]
[358764555,1745417440705,-173.46,0.00044518,2]
[358764558,1745417440715,-2581.16780118,0.00044544,15]
[358764559,1745417440724,-174.95734152,0.00044548,30]